fUST/lending_fUST_20250516
["ID","MTS","AMOUNT","RATE_DAILY","PERIOD"]
[361204808,1747338504662,-450.0,0.00013698,2]
[361204809,1747338504687,-450.0,0.00013698,2]
[361204810,1747338504710,-450.0,0.00013698,2]
[361204811,1747338504738,-250.0,0.00013698,2]
[361204812,1747338504762,-450.0,0.00013698,2]
[361204813,1747338504789,-450.0,0.00013698,2]
[361204814,1747338504815,-450.0,0.00013698,2]
[361204815,1747338504839,-450.0,0.00013698,2]
[361204816,1747338504863,-400.0,0.00013698,2]
[361204817,1747338504887,-400.0,0.00013698,2]
[361204818,1747338504912,-450.0,0.00013698,2]
[361204819,1747338504949,-450.0,0.00013698,2]
[361204820,1747338504975,-450.0,0.00013698,2]
[361204821,1747338505000,-450.0,0.00013698,2]
[361204822,1747338505025,-400.0,0.00013698,2]
[361204823,1747338505052,-450.0,0.00013698,2]
[361204824,1747338505076,-450.0,0.00013698,2]
[361204825,1747338505101,-400.0,0.00013698,2]
[361204826,1747338505125,-450.0,0.00013698,2]
[361204827,1747338505150,-450.0,0.00013698,2]
[361204828,1747338505174,-400.0,0.00013698,2]
[361204829,1747338505198,-450.0,0.00013698,2]
[361204830,1747338505222,-450.0,0.00013698,2]
[361204831,1747338505249,-450.0,0.00013698,2]
[361204832,1747338505275,-450.0,0.00013698,2]
[361204833,1747338505300,-450.0,0.00013698,2]
[361204834,1747338505325,-404.000822,0.00013699,2]
[361204835,1747338505348,-266.01877789,0.00013735,2]
[361204836,1747338505372,-350.0,0.00013835,2]
[361204837,1747338505397,-450.0,0.00013835,2]
[361204838,1747338505421,-450.0,0.00013835,2]
[361204839,1747338505446,-450.0,0.00013835,2]
[361204840,1747338505470,-429.18,0.00013835,2]
[361204841,1747338505495,-450.0,0.00013835,2]
[361204842,1747338505520,-350.0,0.00013835,2]
[361204843,1747338505548,-450.0,0.00013835,2]
[361204844,1747338505573,-450.0,0.00013835,2]
[361204845,1747338505597,-450.0,0.00013835,2]
[361204846,1747338505622,-450.0,0.00013835,2]
[361204847,1747338505648,-450.0,0.00013835,2]
[361204848,1747338505672,-450.0,0.00013835,2]
[361204849,1747338505698,-450.0,0.00013835,2]
[361204850,1747338505724,-450.0,0.00013835,2]
[361204851,1747338505753,-450.0,0.00013835,2]
[361204852,1747338505779,-450.0,0.00013835,2]
[361204853,1747338505806,-450.0,0.00013835,2]
[361204854,1747338505837,-450.0,0.00013835,2]
[361204855,1747338505867,-450.0,0.00013835,2]
[361204856,1747338505898,-450.0,0.00013835,2]
[361204857,1747338505927,-450.0,0.00013835,2]
[361204858,1747338506073,-450.0,0.00013835,2]
[361204859,1747338506099,-450.0,0.00013835,2]
[361204860,1747338506126,-450.0,0.00013835,2]
[361204861,1747338506152,-450.0,0.00013835,2]
[361204862,1747338506178,-450.0,0.00013835,2]
[361204863,1747338506204,-450.0,0.00013835,2]
[361204864,1747338506229,-450.0,0.00013835,2]
[361204865,1747338506253,-471.50128068,0.00013835,2]
[361204866,1747338506283,-450.0,0.00013835,2]
[361204867,1747338506307,-450.0,0.00013835,2]
[361204868,1747338506332,-450.0,0.00013835,2]
[361204869,1747338506357,-450.0,0.00013835,2]
[361204870,1747338506382,-450.0,0.00013835,2]
[361204871,1747338506407,-450.0,0.00013835,2]
[361204872,1747338506432,-450.0,0.00013835,2]
[361204873,1747338506456,-450.0,0.00013835,2]
[361204874,1747338506481,-450.0,0.00013835,2]
[361204875,1747338506505,-450.0,0.00013835,2]
[361204876,1747338506533,-4039.42,0.00013835,2]
[361204877,1747338506557,-450.0,0.00013835,2]
[361204878,1747338506581,-450.0,0.00013835,2]
[361204879,1747338506607,-2797.73,0.00013835,2]
[361204880,1747338506631,-350.0,0.00013835,2]
[361204881,1747338506656,-450.0,0.00013835,2]
[361204882,1747338506680,-450.0,0.00013835,2]
[361204883,1747338506705,-450.0,0.00013835,2]
[361204884,1747338506731,-450.0,0.00013835,2]
[361204885,1747338506755,-450.0,0.00013835,2]
[361204886,1747338506783,-450.0,0.00013835,2]
[361204887,1747338506808,-450.0,0.00013835,2]
[361204888,1747338506833,-450.0,0.00013835,2]
[361204889,1747338506857,-488.31,0.00013835,2]
[361204890,1747338506882,-1343.61,0.00013835,2]
[361204891,1747338506910,-450.0,0.00013835,2]
[361204892,1747338506937,-540.14,0.00013835,2]
[361204893,1747338506961,-350.0,0.00013835,2]
[361204894,1747338506987,-450.0,0.00013835,2]
[361204895,1747338507013,-450.0,0.00013835,2]
[361204896,1747338507042,-450.0,0.00013835,2]
[361204897,1747338507066,-488.22,0.00013835,2]
[361204898,1747338507091,-450.0,0.00013835,2]
[361204899,1747338507115,-374.6196243,0.00013835,2]
[361204900,1747338507141,-193.40360944,0.00013835,2]
[361204901,1747338507165,-450.0,0.00013835,2]
[361204902,1747338507189,-450.0,0.00013835,2]
[361204903,1747338507213,-450.0,0.00013835,2]
[361204904,1747338507238,-450.0,0.00013835,2]
[361204905,1747338507263,-554.83929815,0.00013835,2]
[361204906,1747338507289,-534.18,0.00013835,2]
[361204907,1747338507315,-450.0,0.00013835,2]
[361204908,1747338507341,-350.0,0.00013835,2]
[361204909,1747338507370,-450.0,0.00013835,2]
[361204910,1747338507396,-450.0,0.00013835,2]
[361204911,1747338507425,-246.32,0.00013835,2]
[361204912,1747338507453,-350.0,0.00013835,2]
[361204913,1747338507480,-450.0,0.00013835,2]
[361204914,1747338507509,-450.0,0.00013835,2]
[361204915,1747338507547,-450.0,0.00013972,2]
[361204916,1747338507576,-450.0,0.00013972,2]
[361204917,1747338507605,-416.11393617,0.00013972,2]
[361204918,1747338507634,-571.68,0.00013972,2]
[361204919,1747338507662,-450.0,0.00013972,2]
[361204920,1747338507691,-450.0,0.00013972,2]
[361204921,1747338507717,-450.0,0.00013972,2]
[361204922,1747338507745,-450.0,0.00013972,2]
[361204923,1747338507771,-300.0,0.00013972,2]
[361204924,1747338507801,-239.78,0.00013972,2]
[361204925,1747338507829,-450.0,0.00013972,2]
[361204926,1747338507853,-450.0,0.00013972,2]
[361204927,1747338507878,-300.0,0.00013972,2]
[361204928,1747338507902,-450.0,0.00013972,2]
[361204929,1747338507927,-300.0,0.00013972,2]
[361204930,1747338507953,-450.0,0.00013972,2]
[361204931,1747338507978,-587.94,0.00013972,2]
[361204932,1747338508003,-450.0,0.00013972,2]
[361204933,1747338508028,-450.0,0.00013972,2]
[361204934,1747338508055,-450.0,0.00013972,2]
[361204935,1747338508079,-450.0,0.00013972,2]
[361204936,1747338508105,-450.0,0.00013972,2]
[361204937,1747338508130,-450.0,0.00013972,2]
[361204938,1747338508155,-450.0,0.00013972,2]
[361204939,1747338508180,-450.0,0.00013972,2]
[361204940,1747338508208,-453.74,0.00013972,2]
[361204941,1747338508235,-356.5,0.00013972,2]
[361204942,1747338508263,-450.0,0.00013972,2]
[361204943,1747338508292,-450.0,0.00013972,2]
[361204944,1747338508317,-450.0,0.00013972,2]
[361204945,1747338508342,-450.0,0.00013972,2]
[361204946,1747338508368,-450.0,0.00013972,2]
[361204947,1747338508393,-373.29,0.00013972,2]
[361204948,1747338508420,-450.0,0.00013972,2]
[361204949,1747338508448,-450.0,0.00013972,2]
[361204950,1747338508473,-450.0,0.00013972,2]
[361204951,1747338508501,-4039.42,0.00013972,2]
[361204952,1747338508527,-450.0,0.00013972,2]
[361204953,1747338508560,-450.0,0.00013972,2]
[361204954,1747338508588,-2797.73,0.00013972,2]
[361204955,1747338508614,-300.0,0.00013972,2]
[361204956,1747338508640,-341.76,0.00013972,2]
[361204957,1747338508665,-450.0,0.00013972,2]
[361204958,1747338508690,-300.0,0.00013972,2]
[361204959,1747338508715,-450.0,0.00013972,2]
[361204960,1747338508745,-450.0,0.00013972,2]
[361204961,1747338508772,-450.0,0.00013972,2]
[361204962,1747338508802,-450.0,0.00013972,2]
[361204963,1747338508828,-488.31,0.00013972,2]
[361204964,1747338508856,-1343.61,0.00013972,2]
[361204965,1747338508995,-300.0,0.00013972,2]
[361204966,1747338509022,-450.0,0.00013972,2]
[361204967,1747338509049,-450.0,0.00013972,2]
[361204968,1747338509075,-200.64,0.00013972,2]
[361204969,1747338509099,-450.0,0.00013972,2]
[361204970,1747338509124,-101.89735167,0.00013972,2]
[361204998,1747338632528,-5000.0,0.00013559,2]
[361205000,1747338632539,-5000.0,0.00013559,2]
[361205002,1747338632548,-5000.0,0.00013561,2]
[361205004,1747338632558,-300.0,0.00013697,2]
[361205006,1747338632567,-163.0,0.00013697,2]
[361205007,1747338632577,-400.0,0.00013698,2]
[361205008,1747338632586,-450.0,0.00013698,2]
[361205009,1747338632596,-400.0,0.00013698,2]
[361205010,1747338632606,-450.0,0.00013698,2]
[361205011,1747338632616,-450.0,0.00013698,2]
[361205012,1747338632625,-400.0,0.00013698,2]
[361205013,1747338632635,-400.0,0.00013698,2]
[361205014,1747338632644,-450.0,0.00013698,2]
[361205015,1747338632653,-416.33006213,0.00013698,2]
[361205016,1747338632663,-450.0,0.00013698,2]
[361205017,1747338632672,-450.0,0.00013698,2]
[361205018,1747338632682,-450.0,0.00013698,2]
[361205019,1747338632692,-450.0,0.00013698,2]
[361205020,1747338632701,-450.0,0.00013698,2]
[361205021,1747338632711,-450.0,0.00013698,2]
[361205022,1747338632721,-237.28,0.00013698,2]
[361205023,1747338632730,-510.21,0.00013698,2]
[361205024,1747338632740,-450.0,0.00013698,2]
[361205025,1747338632749,-450.0,0.00013698,2]
[361205026,1747338632759,-450.0,0.00013698,2]
[361205027,1747338632771,-400.0,0.00013698,2]
[361205028,1747338632780,-450.0,0.00013698,2]
[361205029,1747338632790,-450.0,0.00013698,2]
[361205030,1747338632799,-485.81,0.00013698,2]
[361205031,1747338632810,-450.0,0.00013698,2]
[361205032,1747338632819,-450.0,0.00013698,2]
[361205033,1747338632829,-450.0,0.00013698,2]
[361205034,1747338632839,-400.0,0.00013698,2]
[361205035,1747338632849,-400.0,0.00013698,2]
[361205036,1747338632858,-1666.46,0.00013698,2]
[361205037,1747338632868,-450.0,0.00013698,2]
[361205038,1747338632878,-450.0,0.00013698,2]
[361205039,1747338632889,-450.0,0.00013698,2]
[361205040,1747338632899,-400.0,0.00013698,2]
[361205041,1747338632909,-450.0,0.00013698,2]
[361205042,1747338632919,-487.0002271,0.00013698,2]
[361205043,1747338632929,-400.0,0.00013698,2]
[361205044,1747338632939,-450.0,0.00013698,2]
[361205045,1747338632948,-836.65,0.00013698,2]
[361205046,1747338632958,-978.62,0.00013698,2]
[361205047,1747338632967,-450.0,0.00013698,2]
[361205048,1747338632977,-450.0,0.00013698,2]
[361205049,1747338632986,-1282.93,0.00013698,2]
[361205050,1747338632995,-450.0,0.00013698,2]
[361205051,1747338633005,-450.0,0.00013698,2]
[361205052,1747338633015,-450.0,0.00013698,2]
[361205053,1747338633025,-450.0,0.00013698,2]
[361205054,1747338633034,-450.0,0.00013698,2]
[361205055,1747338633044,-450.0,0.00013698,2]
[361205056,1747338633054,-430.21,0.00013698,2]
[361205057,1747338633064,-450.0,0.00013698,2]
[361205058,1747338633073,-450.0,0.00013698,2]
[361205059,1747338633083,-1400.79,0.00013698,2]
[361205060,1747338633092,-450.0,0.00013698,2]
[361205061,1747338633102,-251.42,0.00013698,2]
[361205062,1747338633111,-400.0,0.00013698,2]
[361205063,1747338633121,-450.0,0.00013698,2]
[361205064,1747338633131,-450.0,0.00013698,2]
[361205065,1747338633141,-400.0,0.00013698,2]
[361205066,1747338633151,-450.0,0.00013698,2]
[361205067,1747338633160,-598.41,0.00013698,2]
[361205068,1747338633170,-450.0,0.00013698,2]
[361205069,1747338633179,-450.0,0.00013698,2]
[361205070,1747338633189,-450.0,0.00013698,2]
[361205071,1747338633199,-450.0,0.00013698,2]
[361205072,1747338633209,-2992.67,0.00013698,2]
[361205073,1747338633219,-450.0,0.00013698,2]
[361205074,1747338633228,-400.0,0.00013698,2]
[361205075,1747338633238,-450.0,0.00013698,2]
[361205076,1747338633247,-472.85,0.00013698,2]
[361205077,1747338633256,-450.0,0.00013698,2]
[361205078,1747338633265,-400.0,0.00013698,2]
[361205079,1747338633274,-450.0,0.00013698,2]
[361205080,1747338633284,-400.0,0.00013698,2]
[361205081,1747338633294,-450.0,0.00013698,2]
[361205082,1747338633303,-450.0,0.00013698,2]
[361205083,1747338633312,-450.0,0.00013698,2]
[361205084,1747338633322,-390.89002372,0.00013698,2]
[361205085,1747338633331,-450.0,0.00013698,2]
[361205086,1747338633341,-400.0,0.00013698,2]
[361205087,1747338633351,-450.0,0.00013698,2]
[361205088,1747338633360,-250.0,0.00013698,2]
[361205089,1747338633372,-450.0,0.00013698,2]
[361205090,1747338633382,-500.85,0.00013698,2]
[361205091,1747338633392,-450.0,0.00013698,2]
[361205092,1747338633401,-450.0,0.00013698,2]
[361205093,1747338633412,-450.0,0.00013698,2]
[361205094,1747338633422,-456.93,0.00013698,2]
[361205095,1747338633431,-619.88,0.00013698,2]
[361205096,1747338633441,-450.0,0.00013698,2]
[361205097,1747338633450,-400.0,0.00013698,2]
[361205098,1747338633460,-400.0,0.00013698,2]
[361205099,1747338633469,-450.0,0.00013698,2]
[361205100,1747338633479,-741.7,0.00013698,2]
[361205101,1747338633490,-400.0,0.00013698,2]
[361205102,1747338633500,-450.0,0.00013698,2]
[361205103,1747338633509,-400.0,0.00013698,2]
[361205104,1747338633518,-2411.04,0.00013698,2]
[361205105,1747338633528,-400.0,0.00013698,2]
[361205106,1747338633540,-1065.3,0.00013698,2]
[361205107,1747338633550,-515.1,0.00013698,2]
[361205108,1747338633560,-450.0,0.00013698,2]
[361205109,1747338633570,-450.0,0.00013698,2]
[361205110,1747338633581,-450.0,0.00013698,2]
[361205111,1747338633591,-438.1,0.00013698,2]
[361205112,1747338633601,-450.0,0.00013698,2]
[361205113,1747338633610,-450.0,0.00013698,2]
[361205114,1747338633622,-350.0,0.00013835,2]
[361205115,1747338633631,-450.0,0.00013835,2]
[361205116,1747338633641,-450.0,0.00013835,2]
[361205117,1747338633650,-450.0,0.00013835,2]
[361205118,1747338633660,-450.0,0.00013835,2]
[361205119,1747338633670,-350.0,0.00013835,2]
[361205120,1747338633681,-450.0,0.00013835,2]
[361205121,1747338633690,-450.0,0.00013835,2]
[361205122,1747338633700,-350.0,0.00013835,2]
[361205123,1747338633710,-450.0,0.00013835,2]
[361205124,1747338633720,-510.21,0.00013835,2]
[361205125,1747338633730,-218.27813346,0.00013835,2]
[361205126,1747338633739,-450.0,0.00013835,2]
[361205127,1747338633749,-450.0,0.00013835,2]
[361205128,1747338633760,-450.0,0.00013835,2]
[361205129,1747338633773,-450.0,0.00013835,2]
[361205130,1747338633782,-485.81,0.00013835,2]
[361205131,1747338633792,-450.0,0.00013835,2]
[361205132,1747338633803,-350.0,0.00013835,2]
[361205133,1747338633812,-450.0,0.00013835,2]
[361205134,1747338633822,-1666.46,0.00013835,2]
[361205135,1747338633831,-450.0,0.00013835,2]
[361205136,1747338633842,-450.0,0.00013835,2]
[361205137,1747338633853,-450.0,0.00013835,2]
[361205138,1747338633863,-450.0,0.00013835,2]
[361205139,1747338633873,-450.0,0.00013835,2]
[361205140,1747338633882,-978.62,0.00013835,2]
[361205141,1747338633892,-836.65,0.00013835,2]
[361205142,1747338633901,-450.0,0.00013835,2]
[361205143,1747338633911,-450.0,0.00013835,2]
[361205144,1747338633920,-1282.93,0.00013835,2]
[361205145,1747338633930,-341.97,0.00013835,2]
[361205146,1747338633941,-195.28,0.00013835,2]
[361205147,1747338633950,-150.0,0.00013835,2]
[361205148,1747338633960,-350.0,0.00013835,2]
[361205149,1747338633970,-450.0,0.00013835,2]
[361205150,1747338633980,-350.0,0.00013835,2]
[361205151,1747338633990,-350.0,0.00013835,2]
[361205152,1747338634000,-450.0,0.00013835,2]
[361205153,1747338634010,-1400.79,0.00013835,2]
[361205154,1747338634019,-450.0,0.00013835,2]
[361205155,1747338634029,-450.0,0.00013835,2]
[361205156,1747338634039,-252.61,0.00013835,2]
[361205157,1747338634049,-347.74,0.00013835,2]
[361205158,1747338634059,-598.41,0.00013835,2]
[361205159,1747338634069,-350.0,0.00013835,2]
[361205160,1747338634079,-242.66,0.00013835,2]
[361205161,1747338634089,-450.0,0.00013835,2]
[361205162,1747338634099,-450.0,0.00013835,2]
[361205163,1747338634108,-2992.67,0.00013835,2]
[361205164,1747338634118,-438.22,0.00013835,2]
[361205165,1747338634128,-450.0,0.00013835,2]
[361205166,1747338634138,-450.0,0.00013835,2]
[361205167,1747338634147,-450.0,0.00013835,2]
[361205168,1747338634158,-450.0,0.00013835,2]
[361205169,1747338634168,-589.88,0.00013835,2]
[361205170,1747338634178,-450.0,0.00013835,2]
[361205171,1747338634188,-450.0,0.00013835,2]
[361205172,1747338634198,-327.67,0.00013835,2]
[361205173,1747338634207,-421.39196498,0.00013835,2]
[361205174,1747338634217,-500.85,0.00013835,2]
[361205175,1747338634226,-450.0,0.00013835,2]
[361205176,1747338634235,-180.15,0.00013835,2]
[361205177,1747338634245,-541.08,0.00013835,2]
[361205178,1747338634255,-456.93,0.00013835,2]
[361205179,1747338634264,-619.88,0.00013835,2]
[361205180,1747338634274,-450.0,0.00013835,2]
[361205181,1747338634283,-447.02,0.00013835,2]
[361205182,1747338634293,-741.7,0.00013835,2]
[361205183,1747338634302,-450.0,0.00013835,2]
[361205184,1747338634311,-2411.04,0.00013835,2]
[361205185,1747338634321,-1065.3,0.00013835,2]
[361205186,1747338634330,-450.0,0.00013835,2]
[361205187,1747338634339,-450.0,0.00013835,2]
[361205188,1747338634349,-450.0,0.00013835,2]
[361205189,1747338634358,-450.0,0.00013835,2]
[361205190,1747338634368,-450.0,0.00013835,2]
[361205191,1747338634379,-212.23495278,0.00013902,2]
[361205192,1747338634389,-160.0,0.00013902,2]
[361205193,1747338634399,-160.0,0.00013902,2]
[361205194,1747338634409,-348.10264833,0.00013972,2]
[361205195,1747338634419,-450.0,0.00013972,2]
[361205196,1747338634428,-450.0,0.00013972,2]
[361205197,1747338634437,-450.0,0.00013972,2]
[361205198,1747338634446,-450.0,0.00013972,2]
[361205199,1747338634456,-505.11,0.00013972,2]
[361205200,1747338634466,-300.0,0.00013972,2]
[361205201,1747338634475,-450.0,0.00013972,2]
[361205202,1747338634485,-450.0,0.00013972,2]
[361205203,1747338634494,-450.0,0.00013972,2]
[361205204,1747338634504,-300.0,0.00013972,2]
[361205205,1747338634514,-300.0,0.00013972,2]
[361205206,1747338634523,-300.0,0.00013972,2]
[361205207,1747338634532,-300.0,0.00013972,2]
[361205208,1747338634542,-450.0,0.00013972,2]
[361205209,1747338634552,-300.0,0.00013972,2]
[361205210,1747338634561,-510.21,0.00013972,2]
[361205211,1747338634571,-450.0,0.00013972,2]
[361205212,1747338634581,-450.0,0.00013972,2]
[361205213,1747338634590,-450.0,0.00013972,2]
[361205214,1747338634600,-300.0,0.00013972,2]
[361205215,1747338634609,-485.81,0.00013972,2]
[361205216,1747338634619,-450.0,0.00013972,2]
[361205217,1747338634629,-450.0,0.00013972,2]
[361205218,1747338634639,-1666.46,0.00013972,2]
[361205219,1747338634649,-450.0,0.00013972,2]
[361205220,1747338634658,-450.0,0.00013972,2]
[361205221,1747338634669,-450.0,0.00013972,2]
[361205222,1747338634679,-450.0,0.00013972,2]
[361205223,1747338634689,-450.0,0.00013972,2]
[361205224,1747338634698,-978.62,0.00013972,2]
[361205225,1747338634707,-836.65,0.00013972,2]
[361205226,1747338634823,-450.0,0.00013972,2]
[361205227,1747338634834,-450.0,0.00013972,2]
[361205228,1747338634845,-1282.93,0.00013972,2]
[361205229,1747338634854,-300.0,0.00013972,2]
[361205230,1747338634864,-450.0,0.00013972,2]
[361205231,1747338634875,-1400.79,0.00013972,2]
[361205232,1747338634885,-380.86,0.00013972,2]
[361205233,1747338634894,-450.0,0.00013972,2]
[361205234,1747338634904,-598.41,0.00013972,2]
[361205235,1747338634914,-450.0,0.00013972,2]
[361205236,1747338634924,-450.0,0.00013972,2]
[361205237,1747338634934,-2992.67,0.00013972,2]
[361205238,1747338634943,-371.12,0.00013972,2]
[361205239,1747338634953,-450.0,0.00013972,2]
[361205240,1747338634963,-300.0,0.00013972,2]
[361205241,1747338634972,-450.0,0.00013972,2]
[361205242,1747338634981,-450.0,0.00013972,2]
[361205243,1747338634991,-450.0,0.00013972,2]
[361205244,1747338635000,-500.85,0.00013972,2]
[361205245,1747338635010,-300.0,0.00013972,2]
[361205246,1747338635019,-456.93,0.00013972,2]
[361205247,1747338635029,-619.88,0.00013972,2]
[361205248,1747338635039,-300.0,0.00013972,2]
[361205249,1747338635049,-741.7,0.00013972,2]
[361205250,1747338635059,-450.0,0.00013972,2]
[361205251,1747338635069,-2411.04,0.00013972,2]
[361205252,1747338635079,-1065.3,0.00013972,2]
[361205253,1747338635088,-533.09,0.00013972,2]
[361205254,1747338635097,-450.0,0.00013972,2]
[361205255,1747338635107,-450.0,0.00013972,2]
[361205256,1747338635116,-450.0,0.00013972,2]
[361205257,1747338635126,-450.0,0.00013972,2]
[361205258,1747338635136,-1570645.82342842,0.00014,5]
[361205259,1747338635257,-351.63552655,0.00014,5]
[361205260,1747338635283,-2206.42418607,0.00014,5]
[361205311,1747338638518,-500.0,0.00013697,2]
[361205312,1747338638527,-500.0,0.00013697,2]
[361205313,1747338638536,-500.0,0.00013697,2]
[361205314,1747338638545,-500.0,0.00013697,2]
[361205315,1747338638554,-500.0,0.00013697,2]
[361205316,1747338638563,-639.22468501,0.00013697,2]
[361205317,1747338638572,-567.22642578,0.00013697,2]
[361205318,1747338638581,-500.0,0.00013697,2]
[361205319,1747338638589,-314.31103482,0.00013697,2]
[361205429,1747338640718,-1743.86955029,0.0001356,2]
[361205466,1747338661883,-0.00264065,0.0001356,2]
[361205467,1747338662045,-2724.9999525,0.0001356,2]
[361205468,1747338687213,-531.12785656,0.0001356,2]
[361205469,1747338687238,-185.68896518,0.00013697,2]
[361205470,1747338687264,-372.08245189,0.00013697,2]
[361205471,1747338687289,-500.0,0.00013697,2]
[361205472,1747338687312,-469.25070303,0.00013697,2]
[361205473,1747338687335,-450.0,0.00013698,2]
[361205474,1747338687580,-400.0,0.00013698,2]
[361205475,1747338687604,-450.0,0.00013698,2]
[361205476,1747338687626,-400.0,0.00013698,2]
[361205477,1747338687649,-400.0,0.00013698,2]
[361205478,1747338687675,-4598.57,0.00013698,2]
[361205479,1747338687698,-450.0,0.00013698,2]
[361205480,1747338687720,-533.52,0.00013698,2]
[361205481,1747338687743,-473.78421704,0.00013698,2]
[361205482,1747338687767,-450.0,0.00013698,2]
[361205483,1747338687794,-400.0,0.00013698,2]
[361205484,1747338687817,-450.0,0.00013698,2]
[361205485,1747338687839,-450.0,0.00013698,2]
[361205486,1747338687862,-400.0,0.00013698,2]
[361205487,1747338687883,-450.0,0.00013698,2]
[361205488,1747338687908,-450.0,0.00013698,2]
[361205489,1747338687930,-450.0,0.00013698,2]
[361205490,1747338687954,-400.0,0.00013698,2]
[361205491,1747338687976,-450.0,0.00013698,2]
[361205492,1747338688000,-450.0,0.00013698,2]
[361205493,1747338688025,-509.72,0.00013698,2]
[361205494,1747338688048,-400.0,0.00013698,2]
[361205495,1747338688072,-450.0,0.00013698,2]
[361205496,1747338688094,-450.0,0.00013698,2]
[361205497,1747338688119,-435.21,0.00013698,2]
[361205498,1747338688144,-450.0,0.00013698,2]
[361205499,1747338688167,-400.0,0.00013698,2]
[361205500,1747338688191,-781.37,0.00013698,2]
[361205501,1747338688216,-465.35,0.00013698,2]
[361205502,1747338688240,-1805.55,0.00013698,2]
[361205503,1747338688264,-1805.55,0.00013698,2]
[361205504,1747338688288,-1805.55,0.00013698,2]
[361205505,1747338688312,-1805.55,0.00013698,2]
[361205506,1747338688336,-847.04,0.00013698,2]
[361205507,1747338688359,-1805.55,0.00013698,2]
[361205508,1747338688382,-1805.55,0.00013698,2]
[361205509,1747338688405,-1805.55,0.00013698,2]
[361205510,1747338688432,-1805.55,0.00013698,2]
[361205511,1747338688455,-1805.55,0.00013698,2]
[361205512,1747338688479,-1805.55,0.00013698,2]
[361205513,1747338688503,-1497.5331063,0.00013698,2]
[361205528,1747339531106,-550.39212944,0.00012363,2]
[361205529,1747339641023,-360.10036042,0.00012239,2]
[361205531,1747339642556,-182.90394334,0.00012239,2]
[361205532,1747339645926,-267.9280847,0.00012239,2]
[361205533,1747339648020,-152.00844339,0.00012239,2]
[361205534,1747339649632,-319.12266569,0.00012239,2]
[361205535,1747339651840,-200.30416869,0.00012239,2]
[361205536,1747339653411,-267.22938112,0.00012239,2]
[361205539,1747339654921,-346.618328,0.00012239,2]
[361205545,1747339661303,-230.23822979,0.00012239,2]
[361205546,1747339662930,-269.76177021,0.00012239,2]
[361205547,1747339664576,-423.78892841,0.00012239,2]
[361205548,1747339666113,-213.89203109,0.00012239,2]
[361205549,1747339670169,-243.10366515,0.00012239,2]
[361205550,1747339673445,-195.21107159,0.00012239,2]
[361205551,1747339677378,-300.0,0.00012239,2]
[361205552,1747339680405,-210.60010565,0.00012239,2]
[361205584,1747339751228,-817.18882276,0.00012239,2]
[361205585,1747339751258,-181.0,0.0001267,2]
[361205586,1747339751284,-349.94817724,0.00012741,2]